[Event "*** Titled Tuesday 3|2 Blitz"]
[Site "Chess.com"]
[Date "2017.03.07"]
[Round "6"]
[White "A-Fier"]
[Black "Malev212"]
[Result "0-1"]
[WhiteElo "2510"]
[BlackElo "2488"]
[TimeControl "180+2"]
[EndTime "14:21:14 PST"]
[Termination "Malev212 won by checkmate"]

1. d4 {[%clk 0:03:02]} 1... e6 {[%clk 0:02:59.3]} 2. c4 {[%clk 0:03:02.5]} 2...
f5 {[%clk 0:03:00.1]} 3. Nc3 {[%clk 0:03:03]} 3... Nf6 {[%clk 0:03:01.5]} 4. Bf4
{[%clk 0:03:03.4]} 4... Bb4 {[%clk 0:03:00.7]} 5. e3 {[%clk 0:03:03.5]} 5...
Bxc3+ {[%clk 0:02:57.6]} 6. bxc3 {[%clk 0:03:04.3]} 6... O-O {[%clk 0:02:58.1]}
7. Nf3 {[%clk 0:03:04.9]} 7... d6 {[%clk 0:02:58.8]} 8. h3 {[%clk 0:03:06.2]}
8... b6 {[%clk 0:02:58.9]} 9. Be2 {[%clk 0:03:06.6]} 9... Qe7 {[%clk 0:02:54.5]}
10. O-O {[%clk 0:03:07.2]} 10... Nc6 {[%clk 0:02:53.4]} 11. d5 {[%clk
0:03:04.7]} 11... Na5 {[%clk 0:02:48.1]} 12. dxe6 {[%clk 0:03:03.5]} 12... Bxe6
{[%clk 0:02:48.2]} 13. Nd4 {[%clk 0:03:04.2]} 13... Bd7 {[%clk 0:02:42.8]} 14.
Bd3 {[%clk 0:03:01.9]} 14... Ne4 {[%clk 0:02:42.6]} 15. Qc2 {[%clk 0:03:02.4]}
15... Qf6 {[%clk 0:02:36.7]} 16. Bxe4 {[%clk 0:02:54.7]} 16... fxe4 {[%clk
0:02:36.7]} 17. Qxe4 {[%clk 0:02:56.6]} 17... Nxc4 {[%clk 0:02:30.3]} 18. Qd5+
{[%clk 0:02:46.3]} 18... Qf7 {[%clk 0:02:30.4]} 19. Qxf7+ {[%clk 0:02:47.9]}
19... Rxf7 {[%clk 0:02:29.6]} 20. Bh2 {[%clk 0:02:49.5]} 20... Re8 {[%clk
0:02:28.4]} 21. Rfe1 {[%clk 0:02:48.6]} 21... c5 {[%clk 0:02:18]} 22. Ne2 {[%clk
0:02:49.4]} 22... Bc6 {[%clk 0:02:13.2]} 23. Nf4 {[%clk 0:02:50.3]} 23... g5
{[%clk 0:02:12.6]} 24. Nh5 {[%clk 0:02:49.2]} 24... h6 {[%clk 0:02:06.4]} 25.
Rad1 {[%clk 0:02:50.1]} 25... Re6 {[%clk 0:02:06.4]} 26. Kh1 {[%clk 0:02:41.6]}
26... Rxf2 {[%clk 0:02:03.9]} 27. Ng3 {[%clk 0:02:36.3]} 27... Rxe3 {[%clk
0:01:49.6]} 28. Rxe3 {[%clk 0:02:34.6]} 28... Nxe3 {[%clk 0:01:49.4]} 29. Rxd6
{[%clk 0:02:36.1]} 29... Bxg2+ {[%clk 0:01:39.3]} 30. Kg1 {[%clk 0:02:37.7]}
30... Rxa2 {[%clk 0:01:39.9]} 31. Nh5 {[%clk 0:02:36.3]} 31... Bf3 {[%clk
0:01:33.5]} 32. Nf6+ {[%clk 0:02:30]} 32... Kf7 {[%clk 0:01:34.1]} 33. Nd7
{[%clk 0:02:18.9]} 33... Rg2+ {[%clk 0:01:30.8]} 34. Kh1 {[%clk 0:02:20.3]}
34... Rf2+ {[%clk 0:01:31.9]} 35. Kg1 {[%clk 0:02:21.1]} 35... Rf1# {[%clk
0:01:32.8]} 0-1

[Event "*** Titled Tuesday 3|2 Blitz"]
[Site "Chess.com"]
[Date "2017.03.07"]
[Round "6"]
[White "Schoenbrunn"]
[Black "Jadeit90"]
[Result "0-1"]
[WhiteElo "1862"]
[BlackElo "2154"]
[TimeControl "180+2"]
[EndTime "14:21:52 PST"]
[Termination "Jadeit90 won on time"]

1. e4 {[%clk 0:03:02]} 1... g6 {[%clk 0:02:57.6]} 2. d4 {[%clk 0:02:36]} 2...
Bg7 {[%clk 0:02:46.4]} 3. Nf3 {[%clk 0:02:34.9]} 3... c5 {[%clk 0:02:45.3]} 4.
dxc5 {[%clk 0:01:29]} 4... Qa5+ {[%clk 0:02:44.9]} 5. Nc3 {[%clk 0:01:24.3]}
5... Bxc3+ {[%clk 0:02:44.9]} 6. bxc3 {[%clk 0:01:23.3]} 6... Qxc3+ {[%clk
0:02:46.8]} 7. Bd2 {[%clk 0:01:23.8]} 7... Qxc5 {[%clk 0:02:48]} 8. Bd3 {[%clk
0:01:10.2]} 8... Nf6 {[%clk 0:02:41.5]} 9. O-O {[%clk 0:01:09.9]} 9... O-O
{[%clk 0:02:36.4]} 10. c4 {[%clk 0:00:58.3]} 10... Nc6 {[%clk 0:02:35.2]} 11. e5
{[%clk 0:00:53.8]} 11... Ng4 {[%clk 0:02:35.8]} 12. Bc3 {[%clk 0:00:43.1]} 12...
Ncxe5 {[%clk 0:02:34.1]} 13. Nxe5 {[%clk 0:00:39.9]} 13... Nxe5 {[%clk 0:02:36]}
14. Be2 {[%clk 0:00:32.9]} 14... d6 {[%clk 0:02:36.4]} 15. Kh1 {[%clk
0:00:32.9]} 15... Be6 {[%clk 0:02:35.6]} 16. f4 {[%clk 0:00:30.8]} 16... Nxc4
{[%clk 0:02:36.6]} 17. Rf3 {[%clk 0:00:20.8]} 17... Ne3 {[%clk 0:02:32.6]} 18.
Qd3 {[%clk 0:00:18.9]} 18... Nf5 {[%clk 0:02:27.5]} 19. g4 {[%clk 0:00:18.5]}
19... Nh4 {[%clk 0:02:25.8]} 20. Rh3 {[%clk 0:00:19.3]} 20... Bd5+ {[%clk
0:02:27]} 21. Bf3 {[%clk 0:00:16.2]} 21... Bxf3+ {[%clk 0:02:27.4]} 22. Rxf3
{[%clk 0:00:16.1]} 22... Nxf3 {[%clk 0:02:28.6]} 23. Qxf3 {[%clk 0:00:17.1]}
23... Qc6 {[%clk 0:02:28.4]} 0-1

[Event "*** Titled Tuesday 3|2 Blitz"]
[Site "Chess.com"]
[Date "2017.03.07"]
[Round "6"]
[White "Beca95"]
[Black "morphy1984"]
[Result "1-0"]
[WhiteElo "2688"]
[BlackElo "2487"]
[TimeControl "180+2"]
[EndTime "14:22:05 PST"]
[Termination "Beca95 won by resignation"]

1. d4 {[%clk 0:03:02]} 1... f5 {[%clk 0:02:59.8]} 2. Nf3 {[%clk 0:02:58.7]} 2...
Nf6 {[%clk 0:02:59.6]} 3. h3 {[%clk 0:03:00.1]} 3... d6 {[%clk 0:02:54.8]} 4.
Bf4 {[%clk 0:02:59.7]} 4... g6 {[%clk 0:02:52.3]} 5. e3 {[%clk 0:03:00.1]} 5...
Bg7 {[%clk 0:02:52.5]} 6. Bc4 {[%clk 0:02:59.4]} 6... e6 {[%clk 0:02:42.1]} 7.
g4 {[%clk 0:03:00.5]} 7... Qe7 {[%clk 0:02:35.3]} 8. gxf5 {[%clk 0:02:58.2]}
8... exf5 {[%clk 0:02:34.5]} 9. Nc3 {[%clk 0:02:55.7]} 9... Nc6 {[%clk
0:02:26.3]} 10. a3 {[%clk 0:02:55.4]} 10... a6 {[%clk 0:02:25.1]} 11. Ba2 {[%clk
0:02:40.8]} 11... Bd7 {[%clk 0:02:05.6]} 12. b4 {[%clk 0:02:38.1]} 12... O-O-O
{[%clk 0:02:00.7]} 13. Rb1 {[%clk 0:02:35.7]} 13... Ne4 {[%clk 0:01:49.9]} 14.
Nd5 {[%clk 0:02:35.9]} 14... Qf8 {[%clk 0:01:42.3]} 15. b5 {[%clk 0:02:37]}
15... axb5 {[%clk 0:01:41.1]} 16. Rxb5 {[%clk 0:02:36.7]} 16... Ne7 {[%clk
0:01:28.1]} 17. Ra5 {[%clk 0:02:32.8]} 17... Kb8 {[%clk 0:01:28.7]} 18. Qb1
{[%clk 0:02:08.5]} 18... Bc6 {[%clk 0:01:18.1]} 19. Nb4 {[%clk 0:01:43.9]} 19...
Nc3 {[%clk 0:01:02.4]} 20. Na6+ {[%clk 0:01:44.9]} 20... Kc8 {[%clk 0:01:02.7]}
21. Be6+ {[%clk 0:01:45.7]} 21... Bd7 {[%clk 0:00:59.2]} 22. Nc5 {[%clk
0:01:46.8]} 1-0

[Event "*** Titled Tuesday 3|2 Blitz"]
[Site "Chess.com"]
[Date "2017.03.07"]
[Round "6"]
[White "TheNextLevelFan"]
[Black "TheCount"]
[Result "1-0"]
[WhiteElo "2392"]
[BlackElo "2549"]
[TimeControl "180+2"]
[EndTime "14:22:17 PST"]
[Termination "TheNextLevelFan won by resignation"]

1. d4 {[%clk 0:02:44.6]} 1... Nf6 {[%clk 0:03:00.7]} 2. Nf3 {[%clk 0:02:45.9]}
2... g6 {[%clk 0:03:00.3]} 3. c4 {[%clk 0:02:46.9]} 3... Bg7 {[%clk 0:03:01.2]}
4. Nc3 {[%clk 0:02:48.8]} 4... d5 {[%clk 0:03:02.1]} 5. Bf4 {[%clk 0:02:48.8]}
5... O-O {[%clk 0:03:02.7]} 6. Rc1 {[%clk 0:02:48.9]} 6... Be6 {[%clk
0:03:03.1]} 7. c5 {[%clk 0:02:48.3]} 7... b6 {[%clk 0:02:44.9]} 8. e3 {[%clk
0:02:46.9]} 8... bxc5 {[%clk 0:02:40.7]} 9. dxc5 {[%clk 0:02:48.1]} 9... c6
{[%clk 0:02:33.2]} 10. Qa4 {[%clk 0:02:44]} 10... Nfd7 {[%clk 0:02:32.4]} 11.
Qa3 {[%clk 0:02:38.3]} 11... Bg4 {[%clk 0:02:23]} 12. Be2 {[%clk 0:02:23.3]}
12... e5 {[%clk 0:02:20.5]} 13. Bg5 {[%clk 0:02:20.6]} 13... f6 {[%clk
0:02:19.9]} 14. Bh4 {[%clk 0:02:21.3]} 14... a5 {[%clk 0:01:57.7]} 15. h3 {[%clk
0:02:15.5]} 15... Bxf3 {[%clk 0:01:53.4]} 16. Bxf3 {[%clk 0:02:16]} 16... Na6
{[%clk 0:01:50.4]} 17. Nxd5 {[%clk 0:02:12.1]} 17... cxd5 {[%clk 0:00:54]} 18.
Bxd5+ {[%clk 0:02:12]} 18... Kh8 {[%clk 0:00:55.9]} 19. Bxa8 {[%clk 0:02:12.9]}
19... Qxa8 {[%clk 0:00:57.7]} 20. O-O {[%clk 0:02:01.2]} 20... Qc6 {[%clk
0:00:56.7]} 21. Qxa5 {[%clk 0:01:58.8]} 21... Rb8 {[%clk 0:00:57.3]} 22. Rfd1
{[%clk 0:01:50.3]} 22... Rxb2 {[%clk 0:00:18.9]} 23. Rd6 {[%clk 0:01:43.8]}
23... Qe4 {[%clk 0:00:11.6]} 24. Rxd7 {[%clk 0:01:39.1]} 1-0

[Event "*** Titled Tuesday 3|2 Blitz"]
[Site "Chess.com"]
[Date "2017.03.07"]
[Round "6"]
[White "JaimeSantosLatasa"]
[Black "manubibi"]
[Result "0-1"]
[WhiteElo "2573"]
[BlackElo "2400"]
[TimeControl "180+2"]
[EndTime "14:22:32 PST"]
[Termination "manubibi won by resignation"]

1. e4 {[%clk 0:03:02]} 1... c5 {[%clk 0:02:59.7]} 2. Nf3 {[%clk 0:03:02.8]} 2...
d6 {[%clk 0:03:00.7]} 3. d4 {[%clk 0:03:02.8]} 3... cxd4 {[%clk 0:03:02.6]} 4.
Nxd4 {[%clk 0:03:04.3]} 4... Nf6 {[%clk 0:03:03.6]} 5. Nc3 {[%clk 0:03:04.3]}
5... a6 {[%clk 0:03:04.7]} 6. h3 {[%clk 0:03:05.5]} 6... e6 {[%clk 0:03:03.9]}
7. g4 {[%clk 0:03:05.7]} 7... b5 {[%clk 0:03:05.1]} 8. Bg2 {[%clk 0:02:54.7]}
8... Bb7 {[%clk 0:03:06.6]} 9. O-O {[%clk 0:02:52.7]} 9... Qc7 {[%clk
0:03:07.7]} 10. g5 {[%clk 0:02:45.8]} 10... Nfd7 {[%clk 0:03:08.1]} 11. h4
{[%clk 0:02:46.1]} 11... Be7 {[%clk 0:03:08.5]} 12. a3 {[%clk 0:02:36.8]} 12...
O-O {[%clk 0:03:09.1]} 13. Nce2 {[%clk 0:02:28]} 13... Nc6 {[%clk 0:03:03.3]}
14. c3 {[%clk 0:02:27.6]} 14... Rfe8 {[%clk 0:02:57.1]} 15. Ng3 {[%clk
0:02:24.4]} 15... Rad8 {[%clk 0:02:55.8]} 16. f4 {[%clk 0:02:24.7]} 16... Bf8
{[%clk 0:02:50.2]} 17. Be3 {[%clk 0:02:16.3]} 17... Nb6 {[%clk 0:02:45.6]} 18.
Qe2 {[%clk 0:02:03.6]} 18... e5 {[%clk 0:02:43]} 19. Nxc6 {[%clk 0:02:02.8]}
19... Bxc6 {[%clk 0:02:43.7]} 20. f5 {[%clk 0:02:01]} 20... d5 {[%clk
0:02:43.8]} 21. Rad1 {[%clk 0:01:56.3]} 21... d4 {[%clk 0:02:45]} 22. cxd4
{[%clk 0:01:50.8]} 22... exd4 {[%clk 0:02:45.8]} 23. Bf4 {[%clk 0:01:52.1]}
23... Bd6 {[%clk 0:02:41.9]} 24. Bxd6 {[%clk 0:01:43.5]} 24... Qxd6 {[%clk
0:02:43.8]} 25. Qf2 {[%clk 0:01:44.6]} 25... Nc4 {[%clk 0:02:41.4]} 26. f6
{[%clk 0:01:35.6]} 26... g6 {[%clk 0:02:39.8]} 27. Ne2 {[%clk 0:01:30.6]} 27...
d3 {[%clk 0:02:25.9]} 28. Nc3 {[%clk 0:01:28.6]} 28... d2 {[%clk 0:02:22.8]} 29.
Nd5 {[%clk 0:01:21.7]} 29... Bxd5 {[%clk 0:02:20.1]} 30. exd5 {[%clk 0:01:23.6]}
30... Ne3 {[%clk 0:02:17.4]} 31. Rxd2 {[%clk 0:01:23.4]} 31... Nxf1 {[%clk
0:02:18.3]} 32. Kxf1 {[%clk 0:01:22.7]} 32... Re5 {[%clk 0:02:19.3]} 33. Kg1
{[%clk 0:01:20.9]} 33... Rde8 {[%clk 0:02:19.7]} 34. Bf3 {[%clk 0:01:19.1]}
34... h6 {[%clk 0:02:10.5]} 35. gxh6 {[%clk 0:01:15.8]} 35... Qxf6 {[%clk
0:02:10.4]} 36. d6 {[%clk 0:01:17]} 36... Rd8 {[%clk 0:02:02.5]} 37. d7 {[%clk
0:01:15.7]} 37... Re7 {[%clk 0:01:56.1]} 38. h5 {[%clk 0:01:07.8]} 38... Rexd7
{[%clk 0:01:44.7]} 39. Rxd7 {[%clk 0:01:09.7]} 39... Rxd7 {[%clk 0:01:45.6]} 0-1

[Event "*** Titled Tuesday 3|2 Blitz"]
[Site "Chess.com"]
[Date "2017.03.07"]
[Round "6"]
[White "rasmussvane"]
[Black "workhard91"]
[Result "1-0"]
[WhiteElo "2526"]
[BlackElo "2231"]
[TimeControl "180+2"]
[EndTime "14:22:33 PST"]
[Termination "rasmussvane won by resignation"]

1. Nf3 {[%clk 0:03:02]} 1... c5 {[%clk 0:03:00.4]} 2. c4 {[%clk 0:03:03]} 2...
Nc6 {[%clk 0:03:01.4]} 3. Nc3 {[%clk 0:03:03.9]} 3... g6 {[%clk 0:03:02.2]} 4.
e3 {[%clk 0:03:05.3]} 4... Nf6 {[%clk 0:03:02.6]} 5. d4 {[%clk 0:03:06.5]} 5...
cxd4 {[%clk 0:03:04.5]} 6. exd4 {[%clk 0:03:07.9]} 6... d5 {[%clk 0:03:06.4]} 7.
cxd5 {[%clk 0:03:09.4]} 7... Nxd5 {[%clk 0:03:06.7]} 8. Qb3 {[%clk 0:03:10.6]}
8... e6 {[%clk 0:02:34.9]} 9. Bb5 {[%clk 0:03:10.9]} 9... Bg7 {[%clk 0:02:16.8]}
10. O-O {[%clk 0:03:11.9]} 10... O-O {[%clk 0:02:15.5]} 11. Bxc6 {[%clk
0:03:13.2]} 11... bxc6 {[%clk 0:02:16.4]} 12. Na4 {[%clk 0:03:14.4]} 12... Qd6
{[%clk 0:01:59.1]} 13. Re1 {[%clk 0:02:59.4]} 13... Rb8 {[%clk 0:01:45.2]} 14.
Qd1 {[%clk 0:03:00]} 14... h6 {[%clk 0:01:31.4]} 15. Bd2 {[%clk 0:02:59.3]}
15... Rd8 {[%clk 0:01:25.5]} 16. Rc1 {[%clk 0:02:58.3]} 16... Kh7 {[%clk
0:01:23]} 17. Ne5 {[%clk 0:02:46]} 17... Bxe5 {[%clk 0:01:14.4]} 18. dxe5 {[%clk
0:02:46.1]} 18... Qc7 {[%clk 0:01:04.1]} 19. Qe2 {[%clk 0:02:16]} 19... Rb5
{[%clk 0:00:33.7]} 20. Rc4 {[%clk 0:02:05.2]} 20... Ba6 {[%clk 0:00:31]} 21. Rh4
{[%clk 0:02:04.5]} 21... Rxb2 {[%clk 0:00:20.7]} 22. Qd1 {[%clk 0:01:43.3]}
22... Rxd2 {[%clk 0:00:16.9]} 23. Qxd2 {[%clk 0:01:41.7]} 23... g5 {[%clk
0:00:10.4]} 24. Qxg5 {[%clk 0:01:41.4]} 1-0

[Event "*** Titled Tuesday 3|2 Blitz"]
[Site "Chess.com"]
[Date "2017.03.07"]
[Round "6"]
[White "Jahonas"]
[Black "kereswasbest"]
[Result "0-1"]
[WhiteElo "2167"]
[BlackElo "2044"]
[TimeControl "180+2"]
[EndTime "14:23:07 PST"]
[Termination "kereswasbest won by resignation"]

1. d4 {[%clk 0:03:02]} 1... Nf6 {[%clk 0:02:59.6]} 2. c4 {[%clk 0:03:02.3]} 2...
g6 {[%clk 0:03:01.2]} 3. Nf3 {[%clk 0:03:02]} 3... Bg7 {[%clk 0:03:01.7]} 4. Nc3
{[%clk 0:03:02.8]} 4... d5 {[%clk 0:03:02.2]} 5. cxd5 {[%clk 0:03:02.5]} 5...
Nxd5 {[%clk 0:03:04.1]} 6. e4 {[%clk 0:03:03.7]} 6... Nxc3 {[%clk 0:03:04.7]} 7.
bxc3 {[%clk 0:03:05.6]} 7... O-O {[%clk 0:03:03.2]} 8. Rb1 {[%clk 0:03:05.3]}
8... c5 {[%clk 0:03:04]} 9. Be3 {[%clk 0:03:05.6]} 9... Nc6 {[%clk 0:02:59.9]}
10. Be2 {[%clk 0:03:06.1]} 10... Bg4 {[%clk 0:02:57.3]} 11. O-O {[%clk
0:03:02.2]} 11... Bxf3 {[%clk 0:02:55.5]} 12. Bxf3 {[%clk 0:03:00.4]} 12... cxd4
{[%clk 0:02:57]} 13. cxd4 {[%clk 0:03:00.8]} 13... Bxd4 {[%clk 0:02:33.8]} 14.
Bxd4 {[%clk 0:02:55.4]} 14... Nxd4 {[%clk 0:02:33.7]} 15. Rxb7 {[%clk
0:02:55.4]} 15... e5 {[%clk 0:02:34.9]} 16. Qd3 {[%clk 0:02:49.3]} 16... Qa5
{[%clk 0:02:25.5]} 17. a3 {[%clk 0:02:29.4]} 17... Rab8 {[%clk 0:02:22]} 18.
Rfb1 {[%clk 0:02:17.3]} 18... Nxf3+ {[%clk 0:02:21.5]} 19. gxf3 {[%clk
0:02:14.2]} 19... Rbd8 {[%clk 0:02:08.4]} 20. Qb3 {[%clk 0:02:02.9]} 20... Qd2
{[%clk 0:01:57.4]} 21. Rxa7 {[%clk 0:01:54]} 21... Rd3 {[%clk 0:01:53.5]} 22.
Qc4 {[%clk 0:01:09.8]} 22... Rxf3 {[%clk 0:01:48.6]} 23. Rf1 {[%clk 0:01:04.1]}
23... Qg5+ {[%clk 0:01:43.6]} 24. Kh1 {[%clk 0:01:04.5]} 24... Qf4 {[%clk
0:01:45.2]} 25. Qe2 {[%clk 0:00:57.8]} 25... Rd8 {[%clk 0:01:34.9]} 26. Rc7
{[%clk 0:00:29]} 26... Rh3 {[%clk 0:01:11.5]} 0-1

[Event "*** Titled Tuesday 3|2 Blitz"]
[Site "Chess.com"]
[Date "2017.03.07"]
[Round "6"]
[White "Makalexa"]
[Black "HaryKane"]
[Result "0-1"]
[WhiteElo "2127"]
[BlackElo "2289"]
[TimeControl "180+2"]
[EndTime "14:23:25 PST"]
[Termination "HaryKane won by resignation"]

1. e4 {[%clk 0:03:00]} 1... c5 {[%clk 0:02:58.2]} 2. Nf3 {[%clk 0:02:59.1]} 2...
Nc6 {[%clk 0:02:58.1]} 3. d4 {[%clk 0:02:59.3]} 3... cxd4 {[%clk 0:02:59.2]} 4.
Nxd4 {[%clk 0:03:01.2]} 4... g6 {[%clk 0:02:59.2]} 5. c4 {[%clk 0:03:00.4]} 5...
Bg7 {[%clk 0:02:59.6]} 6. Nc2 {[%clk 0:03:01]} 6... e6 {[%clk 0:03:00.5]} 7. Nc3
{[%clk 0:02:50.5]} 7... Nge7 {[%clk 0:03:00]} 8. Be2 {[%clk 0:02:51.7]} 8... O-O
{[%clk 0:02:59]} 9. O-O {[%clk 0:02:53.2]} 9... b6 {[%clk 0:02:54.5]} 10. Bg5
{[%clk 0:02:49.8]} 10... h6 {[%clk 0:02:54.2]} 11. Be3 {[%clk 0:02:50.6]} 11...
Bb7 {[%clk 0:02:53.5]} 12. Qd2 {[%clk 0:02:51.3]} 12... Kh7 {[%clk 0:02:53.6]}
13. f3 {[%clk 0:02:50]} 13... Rc8 {[%clk 0:02:53.7]} 14. Rac1 {[%clk 0:02:49.1]}
14... f5 {[%clk 0:02:48.3]} 15. Rfd1 {[%clk 0:02:45.9]} 15... Ne5 {[%clk
0:02:43.7]} 16. b3 {[%clk 0:02:43.1]} 16... fxe4 {[%clk 0:02:31.9]} 17. Nxe4
{[%clk 0:02:42.8]} 17... Nf5 {[%clk 0:02:30.2]} 18. Bf2 {[%clk 0:02:37.5]} 18...
d5 {[%clk 0:02:24.9]} 19. cxd5 {[%clk 0:02:29.1]} 19... exd5 {[%clk 0:02:26.8]}
20. Ng3 {[%clk 0:02:28.2]} 20... Nh4 {[%clk 0:02:10.5]} 21. Nd4 {[%clk
0:02:24.8]} 21... Qf6 {[%clk 0:02:05.5]} 22. Rxc8 {[%clk 0:01:59.6]} 22... Bxc8
{[%clk 0:02:02.2]} 23. Qc2 {[%clk 0:01:58.5]} 23... Ng4 {[%clk 0:01:54.3]} 24.
Nh5 {[%clk 0:01:44.7]} 24... Qg5 {[%clk 0:01:22.6]} 25. fxg4 {[%clk 0:01:42]}
25... Bxg4 {[%clk 0:01:17]} 26. Bxg4 {[%clk 0:01:32.1]} 26... Qxg4 {[%clk
0:01:11.9]} 27. Bxh4 {[%clk 0:00:34]} 27... Bxd4+ {[%clk 0:01:06.8]} 28. Rxd4
{[%clk 0:00:34.8]} 28... Qxd4+ {[%clk 0:00:58.7]} 29. Bf2 {[%clk 0:00:30.2]}
29... Qa1+ {[%clk 0:00:55.6]} 0-1

[Event "*** Titled Tuesday 3|2 Blitz"]
[Site "Chess.com"]
[Date "2017.03.07"]
[Round "6"]
[White "Hanging_pointer"]
[Black "MateusViageiro"]
[Result "1-0"]
[WhiteElo "2283"]
[BlackElo "2215"]
[TimeControl "180+2"]
[EndTime "14:23:33 PST"]
[Termination "Hanging_pointer won by resignation"]

1. e4 {[%clk 0:03:02]} 1... c5 {[%clk 0:02:59.5]} 2. Nf3 {[%clk 0:03:03.1]} 2...
d6 {[%clk 0:03:01]} 3. d4 {[%clk 0:03:04.2]} 3... cxd4 {[%clk 0:03:02.1]} 4.
Nxd4 {[%clk 0:03:06.1]} 4... Nf6 {[%clk 0:03:03.6]} 5. Nc3 {[%clk 0:03:07.5]}
5... a6 {[%clk 0:03:05.1]} 6. Bg5 {[%clk 0:03:08.6]} 6... e6 {[%clk 0:03:06.1]}
7. f4 {[%clk 0:03:09.8]} 7... Be7 {[%clk 0:03:06.8]} 8. Qf3 {[%clk 0:03:11.1]}
8... Nbd7 {[%clk 0:03:06]} 9. O-O-O {[%clk 0:03:11.9]} 9... Qc7 {[%clk
0:03:07.1]} 10. g4 {[%clk 0:03:13.2]} 10... b5 {[%clk 0:03:08.1]} 11. Bxf6
{[%clk 0:03:06.9]} 11... Nxf6 {[%clk 0:03:09.2]} 12. g5 {[%clk 0:03:08.3]} 12...
Nd7 {[%clk 0:03:10]} 13. h4 {[%clk 0:03:04.5]} 13... b4 {[%clk 0:03:08.9]} 14.
Nce2 {[%clk 0:03:04.4]} 14... Nc5 {[%clk 0:03:09]} 15. Ng3 {[%clk 0:03:05.1]}
15... Bb7 {[%clk 0:03:08.4]} 16. Kb1 {[%clk 0:03:05.1]} 16... Rc8 {[%clk
0:03:07.8]} 17. Bd3 {[%clk 0:02:38.8]} 17... Qb6 {[%clk 0:03:05.8]} 18. Nb3
{[%clk 0:02:34.4]} 18... a5 {[%clk 0:03:00.2]} 19. f5 {[%clk 0:02:32.7]} 19...
a4 {[%clk 0:02:52.1]} 20. Nxc5 {[%clk 0:02:33.5]} 20... dxc5 {[%clk 0:02:53.2]}
21. Bc4 {[%clk 0:02:29.8]} 21... O-O {[%clk 0:02:47.6]} 22. f6 {[%clk
0:02:29.6]} 22... Bd6 {[%clk 0:02:46.5]} 23. fxg7 {[%clk 0:02:26.6]} 23... Rfd8
{[%clk 0:02:38.7]} 24. Rdf1 {[%clk 0:02:20.1]} 24... Rd7 {[%clk 0:02:18.9]} 25.
Nh5 {[%clk 0:02:19.3]} 25... Be5 {[%clk 0:02:19.3]} 26. Nf6+ {[%clk 0:02:05.5]}
26... Bxf6 {[%clk 0:02:19.6]} 27. Qxf6 {[%clk 0:02:07.4]} 27... Rcd8 {[%clk
0:02:15.4]} 28. g6 {[%clk 0:02:05.8]} 28... hxg6 {[%clk 0:02:13.2]} 29. h5
{[%clk 0:02:06.1]} 29... Qd6 {[%clk 0:02:14.3]} 30. Bd3 {[%clk 0:01:55.7]} 30...
e5 {[%clk 0:02:00.6]} 31. Qf3 {[%clk 0:01:20.8]} 31... b3 {[%clk 0:01:44.1]} 32.
hxg6 {[%clk 0:01:02.5]} 32... bxc2+ {[%clk 0:01:43.6]} 33. Bxc2 {[%clk
0:01:03.3]} 33... fxg6 {[%clk 0:01:32.2]} 34. Qh3 {[%clk 0:00:56.2]} 34... Qd1+
{[%clk 0:01:17.1]} 35. Rxd1 {[%clk 0:00:54.7]} 35... Rxd1+ {[%clk 0:01:16.2]}
36. Rxd1 {[%clk 0:00:54.5]} 36... Rxd1+ {[%clk 0:01:16.2]} 37. Bxd1 {[%clk
0:00:56.4]} 37... Bxe4+ {[%clk 0:01:17.4]} 1-0

[Event "*** Titled Tuesday 3|2 Blitz"]
[Site "Chess.com"]
[Date "2017.03.07"]
[Round "6"]
[White "poummba"]
[Black "Elshan1985"]
[Result "0-1"]
[WhiteElo "2357"]
[BlackElo "2493"]
[TimeControl "180+2"]
[EndTime "14:23:44 PST"]
[Termination "Elshan1985 won by resignation"]

1. e4 {[%clk 0:03:01.2]} 1... b6 {[%clk 0:03:00.8]} 2. d4 {[%clk 0:03:02]} 2...
Bb7 {[%clk 0:03:02.7]} 3. Bd3 {[%clk 0:03:03.3]} 3... e6 {[%clk 0:03:01.9]} 4.
Qe2 {[%clk 0:03:03.8]} 4... c5 {[%clk 0:03:03.4]} 5. d5 {[%clk 0:03:03.4]} 5...
Be7 {[%clk 0:03:02]} 6. c4 {[%clk 0:03:04.5]} 6... d6 {[%clk 0:03:02.8]} 7. Nc3
{[%clk 0:03:03.7]} 7... Nd7 {[%clk 0:03:03.8]} 8. Nf3 {[%clk 0:03:01.7]} 8...
Ngf6 {[%clk 0:03:04.7]} 9. dxe6 {[%clk 0:03:00]} 9... fxe6 {[%clk 0:03:05.3]}
10. e5 {[%clk 0:03:01.6]} 10... Nxe5 {[%clk 0:03:05.9]} 11. Nxe5 {[%clk
0:03:02.9]} 11... dxe5 {[%clk 0:03:07.5]} 12. O-O {[%clk 0:03:01.9]} 12... O-O
{[%clk 0:03:08]} 13. Bg5 {[%clk 0:02:48.3]} 13... Qc7 {[%clk 0:02:26.5]} 14.
Rae1 {[%clk 0:02:48.4]} 14... Rad8 {[%clk 0:02:26.5]} 15. Bc2 {[%clk 0:02:49.6]}
15... Rd4 {[%clk 0:02:26.1]} 16. Qxe5 {[%clk 0:02:40]} 16... Qxe5 {[%clk
0:02:24.8]} 17. Rxe5 {[%clk 0:02:41.2]} 17... Nd7 {[%clk 0:02:13]} 18. Bxe7
{[%clk 0:02:11.5]} 18... Nxe5 {[%clk 0:02:13]} 19. Bxf8 {[%clk 0:02:12.8]} 19...
Rg4 {[%clk 0:02:05.8]} 20. Ne4 {[%clk 0:01:04.6]} 20... Bxe4 {[%clk 0:01:59]}
21. Bxe4 {[%clk 0:01:05.3]} 21... Rxe4 {[%clk 0:01:59.7]} 22. Be7 {[%clk
0:01:00.1]} 22... Nxc4 {[%clk 0:01:57.4]} 23. b3 {[%clk 0:00:58.6]} 23... Nb2
{[%clk 0:01:58.2]} 24. Bd6 {[%clk 0:00:54]} 24... Nd3 {[%clk 0:01:57.6]} 25. Bb8
{[%clk 0:00:53.4]} 25... a6 {[%clk 0:01:58.8]} 26. Rd1 {[%clk 0:00:53.8]} 26...
b5 {[%clk 0:01:48.1]} 27. f3 {[%clk 0:00:47.9]} 27... Re1+ {[%clk 0:01:40.8]}
28. Rxe1 {[%clk 0:00:48.5]} 28... Nxe1 {[%clk 0:01:42.7]} 29. Kf1 {[%clk
0:00:46.5]} 29... Nc2 {[%clk 0:01:41.5]} 30. Ke2 {[%clk 0:00:42.9]} 30... Kf7
{[%clk 0:01:42.5]} 31. Ba7 {[%clk 0:00:38.9]} 31... c4 {[%clk 0:01:34.7]} 32.
bxc4 {[%clk 0:00:40.1]} 32... bxc4 {[%clk 0:01:34.3]} 33. Kd2 {[%clk 0:00:41.6]}
33... Nb4 {[%clk 0:01:35.4]} 34. a3 {[%clk 0:00:25.7]} 34... Nd5 {[%clk
0:01:35.7]} 35. Bd4 {[%clk 0:00:22]} 35... g5 {[%clk 0:01:36.2]} 36. g4 {[%clk
0:00:22.1]} 36... Kg6 {[%clk 0:01:34.2]} 37. Kc2 {[%clk 0:00:21.1]} 37... h5
{[%clk 0:01:34.7]} 38. h3 {[%clk 0:00:22]} 38... h4 {[%clk 0:01:35.8]} 39. Kd2
{[%clk 0:00:22.5]} 39... Kf7 {[%clk 0:01:30.5]} 40. Kc2 {[%clk 0:00:23.8]} 40...
Ke7 {[%clk 0:01:31.6]} 41. Kb2 {[%clk 0:00:25.1]} 41... Kd6 {[%clk 0:01:30.9]}
42. Kc2 {[%clk 0:00:25.7]} 42... e5 {[%clk 0:01:31.5]} 0-1